Workbook

Sheet ellipse
A1: Input Parameters | B1: enter only in | C1: light blue cells | E1: ELLIPSE, exploring multiple trait selection | K1: using information on own phenotype only
A2: Genetic correlation | B2: 0.7 | D2: =B51-A99 -> 0 | L2: =C5 -> Fibre Diameter | M2: =C7 -> micron
A3: Phenotypic correlation | B3: 0.2
A5: Traits | B5: Fleece Wght | C5: Fibre Diameter
A6: phenotypic SD | B6: 0.75 | C6: 2
A7: Units | B7: kg | C7: micron
A8: heritability | B8: 0.1 | C8: 0.1
A9: economic value | B9: 1 | C9: -1
A12: Single Trait responses | B12: =IF(B9>0,B8*B6,-B8*B6) -> 0.075 | C12: =IF(B9>0,SQRT(B8*C8)*B2*C6,-SQRT(B8*C8)*B2*C6) -> 0.14
A13: Correlated Responses | B13: =IF(C9>0,SQRT(B8*C8)*B2*B6,-SQRT(B8*C8)*B2*B6) -> -0.0525 | C13: =IF(C9<0,-C8*C6,C8*C6) -> -0.2
B14: =B7 -> kg | C14: =C7 -> micron
A15: Multiple Trait selection
A16: Index Weights | B16: =B45 -> -0.04930555556 | C16: =B46 -> -0.07005208333
A17: Optimal Response | B17: =D45 -> -0.06668805773 | C17: =D46 -> -0.2185729168
B18: =B7 -> kg | C18: =C7 -> micron
R20: =B5 -> Fleece Wght | S20: =B7 -> kg
A39: P-Matrix | B39: =B6*B6 -> 0.5625 | C39: =B6*C6*B3 -> 0.3
B40: =C39 -> 0.3 | C40: =C6*C6 -> 4
A42: G-Matrix | B42: =B39*B8 -> 0.05625 | C42: =B2*SQRT(B42*C43) -> 0.105
B43: =C42 -> 0.105 | C43: =C40*C8 -> 0.4
F44: ev
A45: b1 | B45: =MMULT(MMULT(MINVERSE(B39:C40),B42:C43),F45:F46) -> -0.04930555556 | C45: optresp1 | D45: =TRANSPOSE(MMULT(TRANSPOSE(B45:B46),B42:C43)/SQRT(B54)) -> -0.06668805773 | F45: =B9 -> 1
A46: b2 | B46: -0.07005208333 | C46: optresp2 | D46: -0.2185729168 | F46: =C9 -> -1
A48: vcv of EBVs | B48: =MMULT(MMULT(TRANSPOSE(B42:C43),MINVERSE(B39:C40)),B42:C43) -> 0.00708984375 | C48: 0.01721875 | D48: cholesky | E48: =SQRT(B48) -> 0.08420120991 | F48: 0
B49: 0.01721875 | C49: 0.05041666667 | E49: =B49/E48 -> 0.20449528 | F49: =SQRT(C49-E49*E49) -> 0.09272727273
A51: corr EBVs | B51: =B49/SQRT(B48*C49) -> 0.9107438017
A52: SD EBV1 | B52: =SQRT(B48) -> 0.08420120991
A53: SDEBV2 | B53: =SQRT(C49) -> 0.2245365598
A54: VarIndex | B54: =MMULT(MMULT(TRANSPOSE(B45:B46),B39:C40),B45:B46) -> 0.02306901042
A55: SDA1 | B55: =SQRT(B42) -> 0.2371708245
A56: SDA2 | B56: =SQRT(C43) -> 0.632455532
A57: acc1 | B57: =B52/B55 -> 0.3550234734
A58: acc2 | B58: =B53/B56 -> 0.3550234734
E59: isoeconomic line | G59: slope | H59: intercept | I59: scaleslope | J59: scaled slope
A60: response graph | B60: =D45-B52/40 -> -0.06879308798 | C60: =D46-B53/40 -> -0.2241863308 | E60: x | F60: y | G60: =IF(ABS(C9)>0.0001,-B9/C9,9999) -> 1 | H60: =D46-G60*D45 -> -0.1518848591 | I60: =B53/B52 -> 2.666666667 | J60: =G60/I60 -> 0.375
B61: =D45+B55/40 -> -0.06075878711 | C61: =C60 -> -0.2241863308 | E61: =IF(ABS($J$60)<1,E66,E68) -> -0.1010414519 | F61: =IF(ABS($J$60)<1,F66,F68) -> -0.252926311
B62: =B61 -> -0.06075878711 | C62: =C63 -> -0.2129595028 | E62: =E71 -> -0.06668805773 | F62: =F71 -> -0.2185729168
B63: =B60 -> -0.06879308798 | C63: =D46+B53/40 -> -0.2129595028 | E63: =IF(ABS($J$60)<1,E67,E69) -> 0.1010414519 | F63: =IF(ABS($J$60)<1,F67,F69) -> -0.05084340719
B64: =B60 -> -0.06879308798 | C64: =C60 -> -0.2241863308
D66: minx | E66: =-E72 -> -0.1010414519 | F66: =E66*G60+H60 -> -0.252926311
D67: maxx | E67: =E72 -> 0.1010414519 | F67: =E67*G60+H60 -> -0.05084340719
D68: miny | E68: =(F68-H60)/G60 -> -0.1175590126 | F68: =F70 -> -0.2694438717
D69: maxy | E69: =(F69-H60)/G60 -> 0.4213287308 | F69: =-F68 -> 0.2694438717
E70: =(F70-H60)/G60 -> -0.1175590126 | F70: =-B53*1.2 -> -0.2694438717
D71: response | E71: =D45 -> -0.06668805773 | F71: =D46 -> -0.2185729168
E72: =B52*1.2 -> 0.1010414519 | F72: =H60+E72*G60 -> -0.05084340719
C98: ellipse
A99: 0.9107438017 | C99: x | D99: y
B100: 0 | C100: 0.08230089611 | D100: 0.2194690563
B101: 0.1745329252 | C101: 0.07796173946 | D101: 0.2243716845
B102: 0.3490658504 | C102: 0.0712537548 | D102: 0.2224568926
B103: 0.5235987756 | C103: 0.06238076086 | D103: 0.2137828605
B104: 0.6981317008 | C104: 0.05161235907 | D104: 0.1986131445
B105: 0.872664626 | C105: 0.03927574187 | D105: 0.1774086685
B106: 1.047197551 | C106: 0.02574575112 | D106: 0.15081372
B107: 1.221730476 | C107: 0.01143348876 | D107: 0.1196363728
B108: 1.396263402 | C108: -0.003226174378 | D108: 0.08482393503
B109: 1.570796327 | C109: -0.01778781184 | D109: 0.0474341649
B110: 1.745329252 | C110: -0.03180897564 | D110: 0.008603131675
B111: 1.919862177 | C111: -0.04486363981 | D111: -0.03048930335
B112: 2.094395102 | C112: -0.05655514498 | D112: -0.06865533633
B113: 2.268928028 | C113: -0.0665282507 | D113: -0.1047353117
B114: 2.443460953 | C114: -0.07447992918 | D114: -0.1376329575
B115: 2.617993878 | C115: -0.0801685727 | D115: -0.1663486956
B116: 2.792526803 | C116: -0.08342133471 | D116: -0.1900100128
B117: 2.967059728 | C117: -0.08413938168 | D117: -0.2078979719
B118: 3.141592654 | C118: -0.08230089611 | D118: -0.2194690563
B119: 3.316125579 | C119: -0.07796173946 | D119: -0.2243716845
B120: 3.490658504 | C120: -0.0712537548 | D120: -0.2224568926
B121: 3.665191429 | C121: -0.06238076086 | D121: -0.2137828605
B122: 3.839724354 | C122: -0.05161235907 | D122: -0.1986131445
B123: 4.01425728 | C123: -0.03927574187 | D123: -0.1774086685
B124: 4.188790205 | C124: -0.02574575112 | D124: -0.15081372
B125: 4.36332313 | C125: -0.01143348876 | D125: -0.1196363728
B126: 4.537856055 | C126: 0.003226174378 | D126: -0.08482393503
B127: 4.71238898 | C127: 0.01778781184 | D127: -0.0474341649
B128: 4.886921906 | C128: 0.03180897564 | D128: -0.008603131675
B129: 5.061454831 | C129: 0.04486363981 | D129: 0.03048930335
B130: 5.235987756 | C130: 0.05655514498 | D130: 0.06865533633
B131: 5.410520681 | C131: 0.0665282507 | D131: 0.1047353117
B132: 5.585053606 | C132: 0.07447992918 | D132: 0.1376329575
B133: 5.759586532 | C133: 0.0801685727 | D133: 0.1663486956
B134: 5.934119457 | C134: 0.08342133471 | D134: 0.1900100128
B135: 6.108652382 | C135: 0.08413938168 | D135: 0.2078979719
B136: 6.283185307 | C136: 0.08230089611 | D136: 0.2194690563

Sheet ellipse with indvidual values
A1: Input Parameters | B1: enter only in | C1: light blue cells | E1: ELLIPSE, exploring multiple trait selection | K1: using information on own phenotype only
A2: Genetic correlation | B2: 0.3 | D2: =B51-A99 -> 0 | L2: =C5 -> Fibre Diameter | M2: =C7 -> micron
A3: Phenotypic correlation | B3: 0.2
A5: Traits | B5: Fleece Wght | C5: Fibre Diameter
A6: phenotypic SD | B6: 0.75 | C6: 2
A7: Units | B7: kg | C7: micron
A8: heritability | B8: 0.3 | C8: 0.5
A9: economic value | B9: 5 | C9: -1
A12: Single Trait responses | B12: =B8*B6 -> 0.225 | C12: =IF(C9<0,-C8*C6,C8*C6) -> -1
A13: Correlated Responses | B13: =SQRT(B8*C8)*B2*B6 -> 0.08714212529 | C13: =SQRT(B8*C8)*B2*C6 -> 0.2323790008
B14: =B7 -> kg | C14: =C7 -> micron
A15: Multiple Trait selection
A16: Index Weights | B16: =B45 -> 1.396498436 | C16: =B46 -> -0.3868820695
A17: Optimal Response | B17: =D45 -> 0.1436495668 | C17: =D46 -> -0.4528775875
B18: =B7 -> kg | C18: =C7 -> micron
R20: =B5 -> Fleece Wght | S20: =B7 -> kg
B26: =B5 -> Fleece Wght | C26: =C5 -> Fibre Diameter | D26: Index
A27: mean EBV of selected | B27: 0.1027337559 | C27: -0.5679083587 | D27: 1.081577138
A28: in Standard Deviations | B28: 0.2500870911 | C28: -0.4015718515 | D28: 0.9235365555
A39: P-Matrix | B39: =B6*B6 -> 0.5625 | C39: =B6*C6*B3 -> 0.3
B40: =C39 -> 0.3 | C40: =C6*C6 -> 4
H41: Ematrix
A42: G-Matrix | B42: =B39*B8 -> 0.16875 | C42: =B2*SQRT(B42*C43) -> 0.1742842506 | D42: cholesky | E42: =SQRT(B42) -> 0.4107919181 | F42: 0 | H42: =B39-B42 -> 0.39375 | I42: =C39-C42 -> 0.1257157494 | J42: cholesky | K42: =SQRT(H42) -> 0.6274950199 | L42: 0
B43: =C42 -> 0.1742842506 | C43: =C40*C8 -> 2 | E43: =B43/E42 -> 0.4242640687 | F43: =SQRT(C43-E43*E43) -> 1.349073756 | H43: =B40-B43 -> 0.1257157494 | I43: =C40-C43 -> 2 | K43: =H43/K42 -> 0.2003454138 | L43: =SQRT(I43-K43*K43) -> 1.399950612
F44: ev | H44: =H43/SQRT(H42*I43) -> 0.1416656007 | I44: res corr
A45: b1 | B45: =MMULT(MMULT(MINVERSE(B39:C40),B42:C43),F45:F46) -> 1.396498436 | C45: optresp1 | D45: =TRANSPOSE(MMULT(TRANSPOSE(B45:B46),B42:C43)/SQRT(B54)) -> 0.1436495668 | F45: =B9 -> 5
A46: b2 | B46: -0.3868820695 | C46: optresp2 | D46: -0.4528775875 | F46: =C9 -> -1 | H46: =SQRT((1-B8)*(1-C8)) -> 0.5916079783 | I46: sqrt(1-h2)
H47: =SQRT(B8)*SQRT(C8)*B2 -> 0.1161895004 | I47: h1h2ra
A48: vcv of EBVs | B48: =MMULT(MMULT(TRANSPOSE(B42:C43),MINVERSE(B39:C40)),B42:C43) -> 0.052474957 | C48: 0.09414312548 | D48: cholesky | E48: =SQRT(B48) -> 0.2290741299 | F48: 0
B49: 0.09414312548 | C49: 1.001092083 | E49: =B49/E48 -> 0.410972315 | F49: =SQRT(C49-E49*E49) -> 0.9122465891
A51: corr EBVs | B51: =B49/SQRT(B48*C49) -> 0.4107480907
A52: SD EBV1 | B52: =SQRT(B48) -> 0.2290741299
A53: SDEBV2 | B53: =SQRT(C49) -> 1.000545893
A54: VarIndex | B54: =MMULT(MMULT(TRANSPOSE(B45:B46),B39:C40),B45:B46) -> 1.371534753 | C54: SDIndex | D54: =SQRT(B54) -> 1.171125422
A55: SDA1 | B55: =SQRT(B42) -> 0.4107919181
A56: SDA2 | B56: =SQRT(C43) -> 1.414213562
A57: corr between EBVs | B57: =B49/SQRT(B48*C49) -> 0.4107480907
A58: acc1 | B58: =B52/B55 -> 0.5576403036
A59: acc2 | B59: =B53/B56 -> 0.7074927855 | E59: isoeconomic line | G59: slope | H59: intercept | I59: scaleslope | J59: scaled slope
A60: response graph | B60: =D45-B52/40 -> 0.1379227136 | C60: =D46-B53/40 -> -0.4778912348 | E60: x | F60: y | G60: =IF(ABS(C9)>0.0001,-B9/C9,9999) -> 5 | H60: =D46-G60*D45 -> -1.171125422 | I60: =B53/B52 -> 4.367782136 | J60: =G60/I60 -> 1.144745742
B61: =D45+B55/40 -> 0.1539193648 | C61: =C60 -> -0.4778912348 | E61: =IF(ABS($J$60)<1,E66,E68) -> -0.005905929867 | F61: =IF(ABS($J$60)<1,F66,F68) -> -1.200655071
B62: =B61 -> 0.1539193648 | C62: =C63 -> -0.4278639402 | E62: =E71 -> 0.1436495668 | F62: =F71 -> -0.4528775875
B63: =B60 -> 0.1379227136 | C63: =D46+B53/40 -> -0.4278639402 | E63: =IF(ABS($J$60)<1,E67,E69) -> 0.4743560985 | F63: =IF(ABS($J$60)<1,F67,F69) -> 1.200655071
B64: =B60 -> 0.1379227136 | C64: =C60 -> -0.4778912348
D66: minx | E66: =-E72 -> -0.2748889559 | F66: =E66*G60+H60 -> -2.545570201
D67: maxx | E67: =E72 -> 0.2748889559 | F67: =E67*G60+H60 -> 0.2033193579
D68: miny | E68: =(F68-H60)/G60 -> -0.005905929867 | F68: =F70 -> -1.200655071
D69: maxy | E69: =(F69-H60)/G60 -> 0.4743560985 | F69: =-F68 -> 1.200655071
E70: =(F70-H60)/G60 -> -0.005905929867 | F70: =-B53*1.2 -> -1.200655071
D71: response | E71: =D45 -> 0.1436495668 | F71: =D46 -> -0.4528775875
E72: =B52*1.2 -> 0.2748889559 | F72: =H60+E72*G60 -> 0.2033193579
L89: Individual EBVs Selected
L90: Individual EBVs NOT Selected
M95: current b-value | N95: 2.619915295 | O95: 1.012595784
M96: current econ-value | N96: 5 | O96: 1
N97: Sorted
C98: ellipse | L98: ebv | M98: ebv | N98: ebv1 | O98: ebv2 | P98: Index
A99: 0.4107480907 | C99: x | D99: y | L99: =B5 -> Fleece Wght | M99: =C5 -> Fibre Diameter | N99: ebv1 | O99: ebv2
B100: 0 | C100: 0.1923914569 | D100: 0.8403239687 | L100: -0.8253711405 | M100: -1.494427434 | N100: 0.3323881016 | O100: -0.5979594255 | P100: 2.259899934 | R100: =L100*B$9+M100*C$9 -> -2.632428268 | S100: 2.140925512 | T100: =RANK(R100,R$100:R$199,1) -> 31 | U100: 1
B101: 0.1745329252 | C101: 0.16787715 | D101: 0.9218643021 | L101: 0.7376042961 | M101: -1.556308554 | N101: 0.3315842018 | O101: -0.4194469346 | P101: 2.077367943 | R101: =L101*B$9+M101*C$9 -> 5.244330034 | S101: 1.653251112 | T101: =RANK(R101,R$100:R$199,1) -> 87 | U101: 2
B102: 0.3490658504 | C102: 0.1382619808 | D102: 0.9753942552 | L102: 0.7951998051 | M102: -3.348970361 | N102: 0.1020902826 | O102: -1.494807534 | P102: 2.005258947 | R102: 7.324969387 | S102: 1.618680707 | T102: 99 | U102: 3
B103: 0.5235987756 | C103: 0.1044457913 | D103: 0.9992873474 | L103: -0.2737133878 | M103: -1.056447082 | N103: 0.2530116003 | O103: -0.6851647901 | P103: 1.950222792 | R103: -0.3121198574 | S103: 1.541090671 | T103: 51 | U103: 4
B104: 0.6981317008 | C104: 0.06745606921 | D104: 0.9928175992 | L104: -0.03974586666 | M104: 1.862270306 | N104: 0.04887619829 | O104: -1.587904609 | P104: 1.832285601 | R104: -2.060999639 | S104: 1.422831655 | T104: 35 | U104: 5
B105: 0.872664626 | C105: 0.02841672864 | D105: 0.9561815907 | L105: 0.9799872216 | M105: -0.5785468293 | N105: 0.4339661088 | O105: 0.4179957061 | P105: 1.751834838 | R105: 5.478482937 | S105: 1.417780365 | T105: 89 | U105: 6
B106: 1.047197551 | C106: -0.01148603985 | D106: 0.8904924883 | L106: -0.2262061213 | M106: -0.8774913084 | N106: -0.04986827418 | O106: -1.961138804 | P106: 1.711797433 | R106: -0.2535392983 | S106: 1.337976716 | T106: 52 | U106: 7
B107: 1.221730476 | C107: -0.05103981083 | D107: 0.7977462224 | L107: 0.4279708061 | M107: -2.791293543 | N107: 0.002349923336 | O107: -1.61433973 | P107: 1.626089347 | R107: 4.931147573 | S107: 1.209651424 | T107: 86 | U107: 8
B108: 1.396263402 | C108: -0.08904276298 | D108: 0.6807608411 | L108: 0.2053043873 | M108: 0.3276848027 | N108: 0.442079617 | O108: 0.5877122562 | P108: 1.622685829 | R108: 0.6988371338 | S108: 1.038202551 | T108: 60 | U108: 9
B109: 1.570796327 | C109: -0.1243401958 | D109: 0.5430908862 | L109: 0.08210390964 | M109: 1.280890551 | N109: -0.152510126 | O109: -2.277645937 | P109: 1.515095308 | R109: -0.8703710027 | S109: 0.9981797192 | T109: 40 | U109: 10
B110: 1.745329252 | C110: -0.1558596148 | D110: 0.3889193895 | L110: 0.3147523523 | M110: -1.205599017 | N110: 0.283264063 | O110: 0.02311400891 | P110: 1.393206306 | R110: 2.779360779 | S110: 0.9682787492 | T110: 68 | U110: 11
B111: 1.919862177 | C111: -0.1826433182 | D111: 0.222930774 | L111: 0.4655994756 | M111: 0.4681399567 | N111: 0.3711014988 | O111: 0.4703365273 | P111: 1.385170967 | R111: 1.859857421 | S111: 0.9451614165 | T111: 66 | U111: 12
B112: 2.094395102 | C112: -0.2038774968 | D112: 0.05016851965 | L112: 1.073075667 | M112: 0.7899210455 | N112: 0.01242397912 | O112: -1.321431079 | P112: 1.383550975 | R112: 4.57545729 | S112: 0.9004818458 | T112: 82 | U112: 13
B113: 2.268928028 | C113: -0.2189169608 | D113: -0.1241180797 | L113: -1.047927001 | M113: -1.333348303 | N113: 0.2195454738 | O113: -0.1941289534 | P113: 1.291856322 | R113: -3.906286703 | S113: 0.8706338163 | T113: 23 | U113: 14
B114: 2.443460953 | C114: -0.2273047438 | D114: -0.2946334141 | L114: -0.04231199961 | M114: 0.4836211499 | N114: -0.1936380027 | O114: -2.087674374 | P114: 1.11948436 | R114: -0.695181148 | S114: 0.8605763199 | T114: 45 | U114: 15
B115: 2.617993878 | C115: -0.2287859871 | D115: -0.4561964612 | L115: 0.3439104001 | M115: 0.7834586494 | N115: 0.147576909 | O115: -0.3732741033 | P115: 1.111158648 | R115: 0.9360933513 | S115: 0.8334722518 | T115: 61 | U115: 16
B116: 2.792526803 | C116: -0.223315684 | D116: -0.6038982097 | L116: -0.9268617926 | M116: 3.380257355 | N116: 0.06956683286 | O116: -0.6803199811 | P116: 1.028154145 | R116: -8.014566318 | S116: 0.8101288675 | T116: 5 | U116: 17
B117: 2.967059728 | C117: -0.2110600468 | D117: -0.7332508167 | L117: -1.020193857 | M117: 1.833061446 | N117: -0.008898108152 | O117: -1.026216122 | P117: 0.9817255814 | R117: -6.934030732 | S117: 0.790961716 | T117: 8 | U117: 18
B118: 3.141592654 | C118: -0.1923914569 | D118: -0.8403239687 | L118: -0.3262415234 | M118: -0.895060551 | N118: 0.04418475049 | O118: -0.7188599412 | P118: 0.9397836936 | R118: -0.7361470661 | S118: 0.7503918013 | T118: 43 | U118: 19
B119: 3.316125579 | C119: -0.16787715 | D119: -0.9218643021 | L119: 0.5072330216 | M119: 1.854403326 | N119: 0.1546884311 | O119: -0.1176625057 | P119: 0.8911046612 | R119: 0.6817617817 | S119: 0.6545434374 | T119: 59 | U119: 20
B120: 3.490658504 | C120: -0.1382619808 | D120: -0.9753942552 | L120: 0.3272699319 | M120: 2.229222414 | N120: 0.2152115115 | O120: 0.2068488861 | P120: 0.8692086712 | R120: -0.5928727541 | S120: 0.6177987907 | T120: 48 | U120: 21
B121: 3.665191429 | C121: -0.1044457913 | D121: -0.9992873474 | L121: -0.4134738303 | M121: -2.525482843 | N121: 0.05603957923 | O121: -0.5569741839 | P121: 0.8371720801 | R121: 0.4581136909 | S121: 0.602228767 | T121: 57 | U121: 22
B122: 3.839724354 | C122: -0.06745606921 | D122: -0.9928175992 | L122: -0.1066242213 | M122: 3.644759327 | N122: 0.05641647977 | O122: -0.526186642 | P122: 0.8082690408 | R122: -4.177880434 | S122: 0.5376110166 | T122: 20 | U122: 23
B123: 4.01425728 | C123: -0.02841672864 | D123: -0.9561815907 | L123: 0.3799986437 | M123: -1.196369757 | N123: -0.1526042572 | O123: -1.544152535 | P123: 0.781131249 | R123: 3.096362975 | S123: 0.5237924501 | T123: 70 | U123: 24
B124: 4.188790205 | C124: 0.01148603985 | D124: -0.8904924883 | L124: -0.816951006 | M124: -1.878218811 | N124: 0.03188877062 | O124: -0.6174786294 | P124: 0.7769224825 | R124: -2.206536219 | S124: 0.4471661666 | T124: 34 | U124: 25
B125: 4.36332313 | C125: 0.05103981083 | D125: -0.7977462224 | L125: 0.7334651246 | M125: -1.20967873 | N125: 0.03348763852 | O125: -0.5810214423 | P125: 0.7484596349 | R125: 4.877004353 | S125: 0.4274048301 | T125: 85 | U125: 26
B126: 4.537856055 | C126: 0.08904276298 | D126: -0.6807608411 | L126: -0.8015047061 | M126: -1.219260923 | N126: 0.3853087189 | O126: 1.271767876 | P126: 0.6547757188 | R126: -2.788262608 | S126: 0.3870120102 | T126: 29 | U126: 27
B127: 4.71238898 | C127: 0.1243401958 | D127: -0.5430908862 | L127: 0.07373003076 | M127: 1.65034211 | N127: 0.1388406099 | O127: 0.06347572416 | P127: 0.6307273254 | R127: -1.281691957 | S127: 0.3614476902 | T127: 38 | U127: 28
B128: 4.886921906 | C128: 0.1558596148 | D128: -0.3889193895 | L128: -0.3340906051 | M128: -0.9747250904 | N128: 0.1155131069 | O128: -0.0457342183 | P128: 0.6232997526 | R128: -0.6957279353 | S128: 0.3318139868 | T128: 44 | U128: 29
B129: 5.061454831 | C129: 0.1826433182 | D129: -0.222930774 | L129: 0.1621533559 | M129: -3.670488915 | N129: 0.07576232392 | O129: -0.2346357509 | P129: 0.6134473704 | R129: 4.481255695 | S129: 0.3225188119 | T129: 80 | U129: 30
B130: 5.235987756 | C130: 0.2038774968 | D130: -0.05016851965 | L130: 0.114767443 | M130: 1.40437956 | N130: -0.3156144231 | O130: -2.169496256 | P130: 0.5914241409 | R130: -0.8305423449 | S130: 0.2983948007 | T130: 41 | U130: 31
B131: 5.410520681 | C131: 0.2189169608 | D131: 0.1241180797 | L131: 1.244093463 | M131: 0.7658369214 | N131: 0.06103649563 | O131: -0.2850366974 | P131: 0.5902191756 | R131: 5.454630393 | S131: 0.1932771462 | T131: 88 | U131: 32
B132: 5.585053606 | C132: 0.2273047438 | D132: 0.2946334141 | L132: -0.8322141491 | M132: -0.7310562198 | N132: -0.1315707362 | O132: -1.228551701 | P132: 0.57069802 | R132: -3.430014526 | S132: 0.1761812984 | T132: 25 | U132: 33
B133: 5.759586532 | C133: 0.2287859871 | D133: 0.4561964612 | L133: 1.020835227 | M133: 0.2936251268 | N133: 0.2501429615 | O133: 0.7541044575 | P133: 0.4966103503 | R133: 4.81055101 | S133: 0.1605733403 | T133: 84 | U133: 34
B134: 5.934119457 | C134: 0.223315684 | D134: 0.6038982097 | L134: -0.06255468198 | M134: -0.5664200924 | N134: 0.2216568264 | O134: 0.6740754969 | P134: 0.4342086351 | R134: 0.2536466825 | S134: 0.1565060003 | T134: 56 | U134: 35
B135: 6.108652382 | C135: 0.2110600468 | D135: 0.7332508167 | L135: 0.7082047332 | M135: 1.935462931 | N135: 0.085259866 | O135: 0.01486199901 | P135: 0.411437331 | R135: 1.605560734 | S135: 0.1218419349 | T135: 63 | U135: 36
B136: 6.283185307 | C136: 0.1923914569 | D136: 0.8403239687 | L136: -0.7719460611 | M136: 1.652340631 | N136: 0.03633587127 | O136: -0.2283821162 | P136: 0.4100614725 | R136: -5.512070937 | S136: 0.1184039383 | T136: 13 | U136: 37
L137: -0.4647376735 | M137: -0.9911686794 | N137: -0.1030120818 | O137: -0.8891855726 | P137: 0.3741251637 | R137: -1.332519688 | S137: 0.1159638933 | T137: 37 | U137: 38
L138: 0.01936942491 | M138: 0.6985371742 | N138: -0.1128272396 | O138: -0.9349184677 | P138: 0.3707822697 | R138: -0.6016900497 | S138: 0.10760282 | T138: 47 | U138: 39
L139: 0.3880562735 | M139: -1.128428437 | N139: -0.06690341472 | O139: -0.7035614453 | P139: 0.3690443717 | R139: 3.068709805 | S139: 0.1047481008 | T139: 69 | U139: 40
L140: -0.6449296987 | M140: -0.6483841858 | N140: -0.1887748336 | O140: -1.27610492 | P140: 0.3322307518 | R140: -2.576264308 | S140: 0.06466227702 | T140: 32 | U140: 41
L141: -0.1832477791 | M141: -0.2272222828 | N141: -0.3049250641 | O141: -1.839909149 | P141: 0.315283828 | R141: -0.6890166125 | S141: 0.0634555672 | T141: 46 | U141: 42
L142: -0.2713641463 | M142: 1.316774059 | N142: 0.2046491022 | O142: 0.7241488548 | P142: 0.2990966565 | R142: -2.67359479 | S142: 0.0484974983 | T142: 30 | U142: 43
L143: -0.2939545496 | M143: 3.397479881 | N143: -0.1418700117 | O143: -0.9628067585 | P143: 0.2534567 | R143: -4.867252629 | S143: 0.04231255784 | T143: 16 | U143: 44
L144: 1.070247391 | M144: 1.180698815 | N144: -0.01346428838 | O144: -0.2960482512 | P144: 0.2287268093 | R144: 4.170538138 | S144: 0.007339417909 | T144: 77 | U144: 45
L145: 0.7728702211 | M145: 0.6378734377 | N145: 0.5804546372 | O145: 2.726046056 | P145: 0.17622713 | R145: 3.226477668 | S145: -0.002817996554 | T145: 71 | U145: 46
L146: 0.1162114592 | M146: 0.3666158366 | N146: -0.2854015048 | O146: -1.594192644 | P146: 0.1671851196 | R146: 0.2144414595 | S146: -0.056365362 | T146: 55 | U146: 47
L147: -1.195377522 | M147: -2.668129215 | N147: -0.3774019914 | O147: -2.041099825 | P147: 0.1540898683 | R147: -3.308758395 | S147: -0.07985931341 | T147: 28 | U147: 48
L148: -1.217282476 | M148: 3.008454584 | N148: -0.0743209005 | O148: -0.5204887156 | P148: 0.1488842131 | R148: -9.094866962 | S148: -0.08355602285 | T148: 2 | U148: 49
L149: -0.463295615 | M149: 0.06232615857 | N149: 0.1354201887 | O149: 0.5861383149 | P149: 0.09096262872 | R149: -2.378804233 | S149: -0.1005563228 | T149: 33 | U149: 50
L150: -0.175270502 | M150: -4.500765777 | N150: 0.1083354132 | O150: 0.4600742948 | P150: 0.08160277141 | R150: 3.624413267 | S150: -0.1009760351 | T150: 73 | U150: 51
L151: 0.07483476916 | M151: 2.07975261 | N151: 0.1399312736 | O151: 0.659807493 | P151: 0.03984887493 | R151: -1.705578765 | S151: -0.1871145798 | T151: 36 | U151: 52
L152: -0.450647974 | M152: -1.777519693 | N152: 0.1745998172 | O152: 0.8591761643 | P152: 0.01382292152 | R152: -0.4757201773 | S152: -0.2103963001 | T152: 49 | U152: 53
L153: -0.5024809346 | M153: -2.076820136 | N153: 0.1893680732 | O153: 0.9713848327 | P153: -0.02454446683 | R153: -0.4355845368 | S153: -0.2296200809 | T153: 50 | U153: 54
L154: 0.734949396 | M154: 3.868627593 | N154: -0.06610554617 | O154: -0.285171282 | P154: -0.04535644884 | R154: -0.1938806129 | S154: -0.2425900108 | T154: 53 | U154: 55
L155: 1.055374334 | M155: -1.251664004 | N155: -0.01774019631 | O155: -0.03258582383 | P155: -0.05611515772 | R155: 6.528535676 | S155: -0.2447638941 | T155: 98 | U155: 56
L156: 1.401864607 | M156: 1.51437554 | N156: -0.1103646587 | O156: -0.4944714199 | P156: -0.05735187347 | R156: 5.494947496 | S156: -0.2502216242 | T156: 90 | U156: 57
L157: -0.836546479 | M157: 3.305131645 | N157: -0.1972949924 | O157: -0.883564489 | P157: -0.1029104728 | R157: -7.487864041 | S157: -0.2518586576 | T157: 6 | U157: 58
L158: -0.8844900764 | M158: -0.3156988563 | N158: -0.0613237733 | O158: -0.2004242398 | P158: -0.1061946267 | R158: -4.106751525 | S158: -0.2806523248 | T158: 21 | U158: 59
L159: 0.4588274946 | M159: -1.224683766 | N159: -0.1092028465 | O159: -0.4001876908 | P159: -0.1458265416 | R159: 3.518821239 | S159: -0.2826044051 | T159: 72 | U159: 60
L160: -0.8501302983 | M160: 0.7162847381 | N160: 0.1432077155 | O160: 0.8670754196 | P160: -0.151036842 | R160: -4.96693623 | S160: -0.2955207805 | T160: 15 | U160: 61
L161: -0.9241032488 | M161: 2.051456427 | N161: -0.2636717858 | O161: -1.150744518 | P161: -0.1676144105 | R161: -6.671972671 | S161: -0.316390524 | T161: 10 | U161: 62
L162: 0.8600381123 | M162: -2.172231602 | N162: 0.08168177747 | O162: 0.6109627037 | P162: -0.2025538164 | R162: 6.472422164 | S162: -0.3672871943 | T162: 97 | U162: 63
L163: 0.4258319375 | M163: 1.115706274 | N163: -0.1755296668 | O163: -0.661920364 | P163: -0.2157279701 | R163: 1.013453414 | S163: -0.381778967 | T163: 62 | U163: 64
L164: 1.202731013 | M164: 2.193156184 | N164: -0.04797498246 | O164: -0.00238853323 | P164: -0.2374863791 | R164: 3.820498882 | S164: -0.3900461775 | T164: 74 | U164: 65
L165: -1.677677795 | M165: 3.133039302 | N165: 0.06958238054 | O165: 0.6316785817 | P165: -0.283766679 | R165: =L165*B$9+M165*C$9 -> -11.52142828 | S165: -0.564758568 | T165: =RANK(R165,R$100:R$199,1) -> 1 | U165: 66
L166: -0.1863339601 | M166: -2.569554235 | N166: 0.01292180948 | O166: 0.3879418943 | P166: -0.3233328469 | R166: 1.637884435 | S166: -0.5949148058 | T166: 64 | U166: 67
L167: -1.309959464 | M167: 1.890656304 | N167: 0.08161556344 | O167: 0.7593371429 | P167: -0.3512593257 | R167: -8.440453622 | S167: -0.6312495076 | T167: 3 | U167: 68
L168: 0.4608700004 | M168: 0.5744955106 | N168: 0.0659823947 | O168: 0.6973670636 | P168: -0.3674550901 | R168: 1.729854492 | S168: -0.6782328562 | T168: 65 | U168: 69
L169: -1.274181581 | M169: -0.3816996111 | N169: -0.09013801936 | O169: -0.0501846502 | P169: -0.4005054466 | R169: -5.989208293 | S169: -0.7142863128 | T169: 12 | U169: 70
L170: -0.4207919648 | M170: 1.965535631 | N170: -0.1531455234 | O170: -0.2877524084 | P170: -0.4779752085 | R170: -4.069495455 | S170: -0.7190497026 | T170: 22 | U170: 71
L171: -0.9898110639 | M171: -1.100739753 | N171: -0.3102789701 | O171: -1.064466547 | P171: -0.4869283039 | R171: -3.848315566 | S171: -0.732904097 | T171: 24 | U171: 72
L172: 0.5839272717 | M172: -1.364600167 | N172: 0.09743580687 | O172: 0.9927363372 | P172: -0.5055573029 | R172: 4.284236525 | S172: -0.7651215134 | T172: 78 | U172: 73
L173: -0.4799141741 | M173: 2.257194472 | N173: 0.2866110814 | O173: 1.966171774 | P173: -0.5331163675 | R173: -4.656765343 | S173: -0.7772161158 | T173: 18 | U173: 74
L174: 0.5269938661 | M174: -1.871719508 | N174: 0.01102269716 | O174: 0.6644009124 | P174: -0.6092874266 | R174: 4.506688838 | S174: -0.7861979693 | T174: 81 | U174: 75
L175: 0.4782543776 | M175: -3.109818522 | N175: -0.3535399107 | O175: -1.140845573 | P175: -0.6268539801 | R175: 5.50109041 | S175: -0.8117202571 | T175: 91 | U175: 76
L176: 0.08334456859 | M176: -5.347364026 | N176: -0.1237002229 | O176: 0.04165617311 | P176: -0.6601572877 | R176: 5.764086869 | S176: -0.8766874681 | T176: 92 | U176: 77
L177: -1.344622465 | M177: -0.4385718355 | N177: 0.02997780204 | O177: 0.8250744676 | P177: -0.6751854574 | R177: -6.284540492 | S177: -0.8972238348 | T177: 11 | U177: 78
L178: 0.3237885991 | M178: 1.062949193 | N178: 0.1633208868 | O178: 1.507507557 | P178: -0.6909031225 | R178: 0.5559938025 | S178: -0.90623285 | T178: 58 | U178: 79
L179: 1.368727409 | M179: 0.4931407955 | N179: 0.03116173344 | O179: 0.8828054834 | P179: -0.7269968162 | R179: 6.350496249 | S179: -0.9067917036 | T179: 96 | U179: 80
L180: 0.9053109864 | M180: -0.1876685986 | N180: -0.09345808652 | O180: 0.4088966116 | P180: -0.8761870442 | R180: 4.71422353 | S180: -0.922114394 | T180: 83 | U180: 81
L181: -0.5752831907 | M181: 0.4624477234 | N181: 0.02060858664 | O181: 0.9947066216 | P181: -0.8916636884 | R181: -3.338863677 | S181: -0.9300127216 | T181: 27 | U181: 82
L182: 0.6059941306 | M182: -2.759936701 | N182: -0.3649595222 | O182: -0.8789359076 | P182: -0.9458617034 | R182: 5.789907354 | S182: -0.972497666 | T182: 93 | U182: 83
L183: 0.4913244187 | M183: -1.661377221 | N183: -0.189695517 | O183: -0.0005640887641 | P183: -0.9479134962 | R183: 4.117999315 | S183: -1.066913048 | T183: 76 | U183: 84
L184: -1.031401236 | M184: 3.076369569 | N184: -0.1730626886 | O184: 0.1030948304 | P184: -0.9684082731 | R184: -8.23337575 | S184: -1.081717053 | T184: 4 | U184: 85
L185: -0.7318119899 | M185: 1.344142979 | N185: 0.03676480062 | O185: 1.275678436 | P185: -1.091854433 | R185: -5.003202929 | S185: -1.088224716 | T185: 14 | U185: 86
L186: 0.07592856472 | M186: 1.468719836 | N186: 0.1004665939 | O186: 1.637448464 | P186: -1.135115494 | R186: -1.089077012 | S186: -1.089942333 | T186: 39 | U186: 87
L187: 0.1523156275 | M187: -3.112156519 | N187: 0.02707359896 | O187: 1.40073294 | P187: -1.265364945 | R187: 3.873734656 | S187: -1.09157103 | T187: 75 | U187: 88
L188: -0.7735304867 | M188: 3.229939362 | N188: -0.098122512 | O188: 0.7807719208 | P188: -1.271384481 | R188: -7.097591795 | S188: -1.19590405 | T188: 7 | U188: 89
L189: 1.116664876 | M189: -6.254235747 | N189: -0.1914794036 | O189: 0.3146600706 | P189: -1.272057089 | R189: 11.83756013 | S189: -1.242020777 | T189: 100 | U189: 90
L190: 0.6874689285 | M190: 0.8489510238 | N190: -0.3807266411 | O190: -0.4903658357 | P190: -1.41326737 | R190: 2.588393618 | S190: -1.246574 | T190: 67 | U190: 91
L191: 0.5556211528 | M191: -3.56136742 | N191: -0.2563933105 | O191: 0.1898902254 | P191: -1.471856778 | R191: 6.339473184 | S191: -1.25768427 | T191: 95 | U191: 92
L192: -0.6159280373 | M192: 1.665262824 | N192: -0.2418457076 | O192: 0.2649420586 | P192: -1.474170597 | R192: -4.74490301 | S192: -1.276623102 | T192: 17 | U192: 93
L193: -0.4316749704 | M193: 1.192238731 | N193: -0.2472516559 | O193: 0.413723159 | P193: -1.649981438 | R193: -3.350613583 | S193: -1.285206643 | T193: 26 | U193: 94
L194: -0.9794741891 | M194: -4.130396178 | N194: -0.5204180639 | O194: -0.8376490872 | P194: -1.764441232 | R194: -0.7669747676 | S194: -1.301585705 | T194: 42 | U194: 95
L195: 0.05610695587 | M195: 0.3994726727 | N195: -0.004203985492 | O195: 1.991014793 | P195: -2.01203472 | R195: -0.1189378934 | S195: -1.377196155 | T195: 54 | U195: 96
L196: -1.072978553 | M196: 1.513984748 | N196: -0.5857555948 | O196: -0.8700637786 | P196: -2.058714195 | R196: -6.878877513 | S196: -1.392353341 | T196: 9 | U196: 97
L197: 0.421387879 | M197: -2.337720479 | N197: -0.1457255825 | O197: 1.437113589 | P197: -2.165741502 | R197: 4.444659874 | S197: -1.492654263 | T197: 79 | U197: 98
L198: -0.7384592611 | M198: 0.8652991431 | N198: -0.5164023031 | O198: -0.3872269292 | P198: -2.194784586 | R198: -4.557595449 | S198: -1.56914842 | T198: 19 | U198: 99
L199: 0.7373098816 | M199: -2.578315038 | N199: -0.357802857 | O199: 1.907445262 | P199: -3.696459547 | R199: 6.264864446 | S199: -1.64027995 | T199: 94 | U199: 100
D928: 36.06991572
